bitfinex-derivatives/quotes_BTCF0:USTF0_20240902
["timestamp","ask_amount","ask_price","bid_price","bid_amount"]
[1725277910257,0.275362,58489.0,58488.0,0.0938]
[1725277911759,0.189881,58489.0,58488.0,0.0938]
[1725277912051,0.189881,58489.0,58488.0,0.002]
[1725277912052,0.275362,58489.0,58488.0,0.002]
[1725277914457,0.360843,58489.0,58488.0,0.002]
[1725277914858,0.275362,58489.0,58488.0,0.002]
[1725277915473,0.360843,58489.0,58488.0,0.002]
[1725277915963,0.275362,58489.0,58488.0,0.002]
[1725277916350,0.360843,58489.0,58488.0,0.002]
[1725277916760,0.270843,58489.0,58488.0,0.002]
[1725277916967,0.360843,58489.0,58488.0,0.002]
[1725277917974,0.275362,58489.0,58488.0,0.002]
[1725277918460,0.360843,58489.0,58488.0,0.002]
[1725277922764,0.185362,58489.0,58488.0,0.002]
[1725277922966,0.360843,58489.0,58488.0,0.002]
[1725277925264,0.40271425,58489.0,58488.0,0.002]
[1725277925461,0.31723325,58489.0,58488.0,0.002]
[1725277925866,0.40271425,58489.0,58488.0,0.002]
[1725277927870,0.31723275,58489.0,58488.0,0.002]
[1725277928575,0.36971501,58489.0,58488.0,0.002]
[1725277929067,0.31723275,58489.0,58488.0,0.002]
[1725277929273,0.36971475,58489.0,58488.0,0.002]
[1725277929473,0.36971476,58489.0,58488.0,0.002]
[1725277929866,0.31723275,58489.0,58488.0,0.002]
[1725277931270,0.40271375,58489.0,58488.0,0.002]
[1725277931772,0.48819475,58489.0,58488.0,0.002]
[1725277932077,0.36943365,58489.0,58483.0,0.00025642]
[1725277932380,0.77115891,58484.0,58470.0,0.085508]
[1725277932582,0.175908,58471.0,58470.0,0.085508]
[1725277933266,0.13312291,58471.0,58470.0,0.21943986]
[1725277933471,0.175908,58471.0,58470.0,0.21943986]
[1725277934375,0.175908,58471.0,58470.0,0.30473631]
[1725277934578,0.176908,58471.0,58470.0,0.31773631]
[1725277935084,0.180908,58471.0,58470.0,0.31773631]
[1725277935380,0.180908,58471.0,58470.0,0.10211646]
[1725277937275,0.180908,58471.0,58470.0,0.01660846]
[1725277937276,0.266416,58471.0,58470.0,0.01660846]
[1725277938270,0.266416,58471.0,58470.0,0.08479496]
[1725277938669,0.266416,58471.0,58470.0,0.01660846]
[1725277942481,0.090908,58471.0,58470.0,0.01660846]
[1725277943788,0.090908,58471.0,58470.0,0.10211746]
[1725277945888,0.180908,58471.0,58470.0,0.10211746]
[1725277946978,0.090908,58471.0,58470.0,0.61519746]
[1725277947176,0.090908,58471.0,58470.0,1.21519746]
[1725277947587,0.08575842,58476.0,58475.0,0.085502]
[1725277947588,0.00025642,58476.0,58475.0,0.085502]
[1725277947888,0.00025642,58476.0,58475.0,0.085902]
[1725277948084,0.00025642,58476.0,58475.0,0.532204]
[1725277948284,0.00025642,58476.0,58475.0,0.631004]
[1725277948680,0.00025642,58476.0,58475.0,0.545502]
[1725277948885,0.00025642,58476.0,58475.0,0.184702]
[1725277949493,0.00925642,58476.0,58475.0,0.184702]
[1725277949686,0.00925642,58476.0,58475.0,0.192702]
[1725277949687,0.01025642,58476.0,58475.0,0.192702]
[1725277951284,0.01025642,58476.0,58475.0,0.278204]
[1725277951486,0.01025642,58476.0,58475.0,0.192702]
[1725277951688,0.01025642,58476.0,58475.0,0.278204]
[1725277951888,0.01025642,58476.0,58475.0,0.192702]
[1725277952578,0.01025642,58476.0,58475.0,0.278204]
[1725277952883,0.01025642,58476.0,58475.0,0.192702]
[1725277953896,0.01025642,58476.0,58475.0,0.278204]
[1725277954097,0.01025642,58476.0,58475.0,0.192702]
[1725277955295,0.01025642,58476.0,58475.0,0.791244]
[1725277955592,0.01025642,58476.0,58475.0,0.705742]
[1725277955795,0.01025642,58476.0,58475.0,0.791244]
[1725277956591,0.01025642,58476.0,58475.0,0.705742]
[1725277956893,0.01025642,58476.0,58475.0,0.192702]
[1725277957090,0.01025642,58476.0,58475.0,0.278204]
[1725277957297,0.13675782,58482.0,58481.0,0.085493]
[1725277957492,0.04187105,58482.0,58481.0,0.175893]
[1725277958197,0.04187105,58482.0,58481.0,0.261386]
[1725277958590,0.05587105,58482.0,58481.0,0.261386]
[1725277958997,0.05587105,58482.0,58481.0,0.262386]
[1725277960196,0.014,58482.0,58481.0,0.347879]
[1725277963395,0.014,58482.0,58481.0,0.39899047]
[1725277965703,0.014,58482.0,58481.0,0.30899047]
[1725277965904,0.014,58482.0,58481.0,0.347879]
[1725277966610,0.014,58482.0,58481.0,0.35138265]
[1725277968302,0.014,58482.0,58481.0,0.31244781]
[1725277968496,0.014,58482.0,58481.0,0.40244781]
[1725277970098,0.104,58482.0,58481.0,0.05596881]
[1725277970301,1.235784,58482.0,58481.0,0.0014]
[1725277970510,1.79066033,58482.0,58481.0,0.0014]
[1725277970713,1.87615233,58482.0,58481.0,0.0014]
[1725277971007,1.79066033,58482.0,58481.0,0.0014]
[1725277971206,1.19066162,58482.0,58481.0,0.0014]
[1725277971414,1.87615362,58482.0,58481.0,0.0014]
[1725277971609,1.78066162,58482.0,58481.0,0.0004]
[1725277971913,1.79466162,58482.0,58481.0,0.0014]
[1725277972308,1.93264485,58482.0,58481.0,0.0014]
[1725277972910,0.170998,58477.0,58476.0,0.00025642]
[1725277973114,0.71656685,58477.0,58476.0,0.00025642]
[1725277973306,0.87016358,58477.0,58476.0,0.00025642]
[1725277973508,0.95566258,58477.0,58476.0,0.00025642]
[1725277974209,1.03970128,58477.0,58476.0,0.00025642]
[1725277974404,0.90010455,58477.0,58476.0,0.00125642]
[1725277974609,0.81010455,58477.0,58476.0,0.00125642]
[1725277974816,0.90010455,58477.0,58476.0,0.00125642]
[1725277976208,0.76357824,58477.0,58476.0,0.00125642]
[1725277977811,0.90008781,58477.0,58476.0,0.00125642]
[1725277978314,0.76357824,58477.0,58476.0,0.00125642]
[1725277978613,0.721697,58477.0,58476.0,0.00125642]
[1725277987110,0.631697,58477.0,58476.0,0.00125642]
[1725277987315,0.721697,58477.0,58476.0,0.00125642]
[1725277990919,0.723037,58477.0,58476.0,0.00125642]
[1725277991122,0.362237,58477.0,58476.0,0.00125642]
[1725277991426,0.723037,58477.0,58476.0,0.00125642]
[1725277993716,0.97100864,58477.0,58476.0,0.00125642]
[1725277994415,0.81741191,58477.0,58476.0,0.00125642]
[1725277995420,0.64191291,58477.0,58476.0,0.00125642]
[1725277995917,0.58941852,58477.0,58476.0,0.00125642]
[1725277996527,0.72594675,58477.0,58476.0,0.00125642]
[1725277996915,0.72594675,58477.0,58476.0,0.08675642]
[1725277997318,0.58941852,58477.0,58476.0,0.08675642]
[1725277998025,0.70995959,58477.0,58476.0,0.08675642]
[1725277998222,0.55641008,58477.0,58476.0,0.08675642]
[1725277998518,0.66825765,58477.0,58476.0,0.08675642]
[1725277998823,0.71013434,58477.0,58476.0,0.08675642]
[1725277999123,0.55640527,58477.0,58476.0,0.08675642]
[1725277999919,0.55640509,58477.0,58476.0,0.08675642]
[1725278000628,0.462039,58477.0,58476.0,0.08675642]
[1725278000823,0.462039,58477.0,58476.0,0.13782867]
[1725278001225,0.462039,58477.0,58476.0,0.08675642]
[1725278001530,0.552039,58477.0,58476.0,0.08675642]
[1725278003529,0.552039,58477.0,58476.0,0.13793001]
[1725278003729,0.637538,58477.0,58476.0,0.05243001]
[1725278004029,0.723037,58477.0,58476.0,0.05243179]
[1725278004225,0.723037,58477.0,58476.0,0.00125642]
[1725278007119,0.633037,58477.0,58476.0,0.00125642]
[1725278007323,0.723037,58477.0,58476.0,0.00125642]
[1725278009132,0.808536,58477.0,58476.0,0.00125642]
[1725278009630,0.723037,58477.0,58476.0,0.00125642]
[1725278015633,0.81741215,58477.0,58476.0,0.00125642]
[1725278016029,0.90291115,58477.0,58476.0,0.00125642]
[1725278016232,0.81741215,58477.0,58476.0,0.00125642]
[1725278017434,0.90291115,58477.0,58476.0,0.00125642]
[1725278017635,0.81741215,58477.0,58476.0,0.00125642]
[1725278017841,0.81741498,58477.0,58476.0,0.00125642]
[1725278018036,0.90291398,58477.0,58476.0,0.00125642]
[1725278018236,0.81607498,58477.0,58476.0,0.00125642]
[1725278019140,0.90157398,58477.0,58476.0,0.00125642]
[1725278019539,0.81607498,58477.0,58476.0,0.00125642]
[1725278022144,1.17687498,58477.0,58476.0,0.00125642]
[1725278023348,1.26237398,58477.0,58476.0,0.00125642]
[1725278023535,1.34778937,58477.0,58476.0,0.00125642]
[1725278023740,0.446396,58477.0,58476.0,0.00125642]
[1725278024142,1.167996,58477.0,58476.0,0.00125642]
[1725278026347,0.446396,58477.0,58476.0,0.00125642]
[1725278026552,1.167996,58477.0,58476.0,0.00125642]
[1725278026843,0.446396,58477.0,58476.0,0.00125642]
[1725278027037,1.167996,58477.0,58476.0,0.00125642]
[1725278027239,0.446396,58477.0,58476.0,0.00125642]
[1725278027443,1.167996,58477.0,58476.0,0.00125642]
[1725278030852,1.26237408,58477.0,58476.0,0.00125642]
[1725278032447,1.26371408,58477.0,58476.0,0.00125642]
[1725278034447,0.54211408,58477.0,58476.0,0.00125642]
[1725278034949,1.26371408,58477.0,58476.0,0.00125642]
[1725278035267,1.08821508,58477.0,58476.0,0.00125642]
[1725278035444,1.17821508,58477.0,58476.0,0.00125642]
[1725278035853,1.09271608,58477.0,58476.0,0.00125642]
[1725278036754,0.91721708,58477.0,58476.0,0.00125642]
[1725278037053,1.07114615,58477.0,58476.0,0.08675642]
[1725278037250,1.02926422,58477.0,58476.0,0.08675642]
[1725278037454,1.16113602,58477.0,58476.0,0.08675642]
[1725278037750,1.00720695,58477.0,58476.0,0.08675642]
[1725278038757,0.912839,58477.0,58476.0,0.08675642]
[1725278042147,0.912839,58477.0,58476.0,0.09031873]
[1725278042947,0.085509,58470.0,58467.0,0.091]
[1725278043255,0.707736,58468.0,58467.0,0.091]
[1725278044462,0.707736,58468.0,58467.0,0.0455]
[1725278044755,0.622224,58468.0,58466.0,0.00357884]
[1725278044944,0.085519,58463.0,58462.0,0.09867886]
[1725278045151,0.532238,58463.0,58462.0,0.09867886]
[1725278045352,0.531838,58463.0,58462.0,0.09869364]
[1725278045750,0.57372436,58463.0,58462.0,0.0475]
[1725278045958,0.71047735,58463.0,58462.0,0.0475]
[1725278046157,0.171042,58462.0,58461.0,0.0472]
[1725278046450,0.21192836,58462.0,58461.0,0.0472]
[1725278046660,0.21232836,58462.0,58461.0,0.0472]
[1725278046961,0.21232836,58462.0,58460.0,0.0478]
[1725278046962,0.256566,58461.0,58460.0,0.04533563]
[1725278047162,0.44135666,58461.0,58460.0,0.04533563]
[1725278047654,0.44135666,58461.0,58460.0,0.0490187]
[1725278048052,0.26583466,58461.0,58460.0,0.0490187]
[1725278048253,0.12180836,58461.0,58460.0,0.0490187]
[1725278049047,0.12180836,58461.0,58460.0,0.0500187]
[1725278049766,0.13580836,58461.0,58460.0,0.0500187]
[1725278050954,0.05628636,58461.0,58460.0,0.1355427]
[1725278053151,0.14628636,58461.0,58460.0,0.1355427]
[1725278053751,0.06160717,58461.0,58460.0,0.1355427]
[1725278053961,0.3608,58463.0,58462.0,0.085521]
[1725278054160,0.4508,58463.0,58462.0,0.085921]
[1725278055165,0.4528,58463.0,58462.0,0.085921]
[1725278055562,0.538319,58463.0,58462.0,0.085921]
[1725278056771,0.552319,58463.0,58462.0,0.086921]
[1725278057279,0.552319,58463.0,58462.0,0.13805847]
[1725278057661,0.552319,58463.0,58462.0,0.086921]
[1725278060760,0.67972604,58463.0,58462.0,0.086921]
[1725278061465,0.67972604,58463.0,58462.0,0.0014]
[1725278061666,0.59420704,58463.0,58462.0,0.086921]
[1725278061865,0.552319,58463.0,58462.0,0.086921]
[1725278063866,0.016,58463.0,58462.0,0.347963]
[1725278064065,0.016,58463.0,58462.0,0.447563]
[1725278065072,0.016,58463.0,58462.0,0.362042]
[1725278066370,0.016,58463.0,58462.0,0.272042]
[1725278068178,0.028,58463.0,58462.0,0.273042]
[1725278068979,0.028,58463.0,58462.0,0.187521]
[1725278069181,0.118,58463.0,58462.0,0.0024]
[1725278069374,0.649838,58463.0,58462.0,0.0024]
[1725278072770,0.735357,58463.0,58462.0,0.0024]
[1725278072972,0.735357,58463.0,58447.0,0.05113747]
[1725278072973,0.171082,58448.0,58447.0,0.05113747]
[1725278073178,0.4508,58448.0,58442.0,0.05113747]
[1725278073379,0.085552,58441.0,58440.0,0.05113747]
[1725278073576,0.085552,58441.0,58438.0,0.00360349]
[1725278073577,0.0904,58441.0,58438.0,0.00360349]
[1725278073875,0.0904,58441.0,58437.0,0.05113747]
[1725278073876,0.085556,58438.0,58437.0,0.05113747]
[1725278074070,0.085956,58438.0,58436.0,0.4268]
[1725278074271,0.0004,58437.0,58436.0,0.4268]
[1725278074471,0.082956,58438.0,58436.0,0.56351076]
[1725278074670,0.0004,58438.0,58436.0,0.56351076]
[1725278075078,0.0004,58438.0,58437.0,0.001]
[1725278075079,0.0124,58438.0,58437.0,0.001]
[1725278075672,0.0124,58438.0,58437.0,0.086557]
[1725278076484,0.0124,58438.0,58437.0,0.13769883]
[1725278076879,0.0104,58438.0,58437.0,0.13669883]
[1725278077482,0.0004,58438.0,58437.0,0.13669883]
[1725278077689,0.0114,58438.0,58437.0,0.13669883]
[1725278078381,0.0114,58438.0,58437.0,0.085557]
[1725278078584,0.0114,58438.0,58437.0,1.198917]
[1725278078780,0.0114,58438.0,58437.0,0.085557]
[1725278080177,0.0114,58438.0,58437.0,0.13665755]
[1725278080386,0.0114,58438.0,58437.0,0.085557]
[1725278080879,0.096956,58438.0,58437.0,0.085557]
[1725278085186,0.085557,58437.0,58436.0,0.43037365]
[1725278085381,0.085957,58437.0,58436.0,0.51593265]
[1725278085586,0.331514,58437.0,58436.0,0.06957365]
[1725278086293,0.974874,58437.0,58436.0,0.066]
[1725278086687,0.984874,58437.0,58436.0,0.066]
[1725278086894,2.031231,58437.0,58436.0,0.066]
[1725278087889,1.945674,58437.0,58436.0,0.066]
[1725278088587,2.031231,58437.0,58436.0,0.066]
[1725278088785,1.345674,58437.0,58436.0,0.066]
[1725278089292,1.315674,58437.0,58436.0,0.066]
[1725278090200,0.802314,58437.0,58436.0,0.066]
[1725278090696,1.676474,58437.0,58436.0,0.066]
[1725278090896,1.163114,58437.0,58436.0,0.066]
[1725278092602,1.077557,58437.0,58436.0,0.066]
[1725278095093,0.817557,58437.0,58436.0,0.151559]
[1725278096003,0.456757,58437.0,58436.0,0.20259375]
[1725278096296,0.0104,58437.0,58436.0,0.151559]
[1725278096894,0.0104,58437.0,58436.0,0.664919]
[1725278097504,0.0104,58437.0,58436.0,0.824919]
[1725278097900,0.0104,58437.0,58436.0,1.424919]
[1725278098288,0.0104,58437.0,58436.0,1.47598899]
[1725278098600,0.0104,58437.0,58436.0,1.56510441]
[1725278098991,0.0104,58437.0,58436.0,1.47954541]
[1725278099298,0.0104,58437.0,58436.0,1.42847542]
[1725278101009,0.0104,58437.0,58436.0,1.51403442]
[1725278101798,0.0104,58437.0,58436.0,1.58212774]
[1725278102706,0.0104,58437.0,58436.0,1.51403442]
[1725278103810,1e-08,58438.0,58437.0,0.770031]
[1725278104109,0.0004,58443.0,58442.0,0.08555]
[1725278104416,0.0004,58443.0,58442.0,0.60635]
[1725278104804,0.0004,58443.0,58442.0,0.65545]
[1725278105005,0.085541,58449.0,58448.0,0.085541]
[1725278105817,0.36105664,58451.0,58450.0,0.085538]
[1725278106112,0.4554677,58451.0,58450.0,0.085538]
[1725278106312,0.5410047,58451.0,58450.0,0.085538]
[1725278107802,0.5550047,58451.0,58450.0,0.086538]
[1725278108203,0.7427715,58451.0,58450.0,0.086538]
[1725278108508,0.5550047,58451.0,58450.0,0.086538]
[1725278108815,0.7557715,58451.0,58450.0,0.086538]
[1725278110213,0.2072047,58451.0,58450.0,0.086538]
[1725278111719,0.275269,58451.0,58450.0,0.086538]
[1725278111912,0.1216677,58451.0,58450.0,0.086538]
[1725278112114,0.1216677,58451.0,58450.0,0.09016196]
[1725278112421,0.2072047,58451.0,58450.0,0.09016196]
[1725278113012,0.11279364,58451.0,58450.0,0.09016196]
[1725278113518,0.11279364,58451.0,58450.0,1.80973996]
[1725278113519,0.02725664,58451.0,58450.0,1.80973996]
[1725278113712,0.01425664,58451.0,58450.0,1.89527796]
[1725278113907,0.01425664,58451.0,58450.0,1.89427796]
[1725278113908,0.01025664,58451.0,58450.0,1.89427796]
[1725278114113,0.02425664,58451.0,58450.0,1.80873996]
[1725278114619,0.02525664,58451.0,58450.0,1.80873996]
[1725278114918,0.02525664,58451.0,58450.0,1.72320196]
[1725278115420,0.01725664,58451.0,58450.0,1.72320196]
[1725278116422,0.01525664,58451.0,58450.0,1.12320196]
[1725278116720,0.01525664,58451.0,58450.0,1.72320196]
[1725278116921,0.01725664,58451.0,58450.0,1.72320196]
[1725278117823,0.01725664,58451.0,58450.0,1.80873996]
[1725278121525,0.11164642,58451.0,58450.0,1.80873996]
[1725278122114,0.05914369,58451.0,58450.0,1.80873996]
[1725278122918,0.05914369,58451.0,58450.0,1.64873996]
[1725278123134,0.05914369,58451.0,58450.0,1.80873996]
[1725278123330,0.05914369,58451.0,58450.0,1.72320196]
[1725278124223,0.05914369,58451.0,58450.0,1.80873996]
[1725278124424,0.05914369,58451.0,58450.0,1.72320196]
[1725278124619,0.05914369,58451.0,58450.0,1.80873996]
[1725278126039,0.05914369,58451.0,58450.0,1.72320196]
[1725278126227,0.05914369,58451.0,58450.0,1.80873996]
[1725278126734,0.05914369,58451.0,58450.0,1.20873996]
[1725278127035,0.05914369,58451.0,58450.0,1.12320196]
[1725278127424,0.06975967,58451.0,58450.0,0.60996196]
[1725278127629,0.11164672,58451.0,58450.0,1.20873996]
[1725278127831,0.11164672,58451.0,58450.0,1.12320196]
[1725278128025,0.01725664,58451.0,58450.0,1.12320196]
[1725278128230,0.01725664,58451.0,58450.0,1.20873996]
[1725278128736,0.01725664,58451.0,58450.0,0.60996196]
[1725278129136,0.01725664,58451.0,58450.0,0.69549996]
[1725278131845,0.01725664,58451.0,58450.0,0.60996196]
[1725278133539,0.01725664,58451.0,58450.0,0.44996196]
[1725278133842,0.21833064,58451.0,58450.0,0.00362396]
[1725278134145,0.08555,58442.0,58436.0,0.0672]
[1725278134437,0.08555,58442.0,58436.0,0.07074502]
[1725278134438,0.085557,58437.0,58436.0,0.07074502]
[1725278134738,0.085957,58437.0,58436.0,0.07074502]
[1725278134938,0.0004,58437.0,58436.0,0.31630402]
[1725278137445,0.0094,58437.0,58436.0,0.31630402]
[1725278142448,0.0094,58437.0,58436.0,0.15630402]
[1725278142746,0.094957,58437.0,58436.0,0.15630402]
[1725278142952,0.094957,58437.0,58436.0,0.07074502]
[1725278143537,0.094957,58437.0,58436.0,0.12187013]
[1725278144646,0.094957,58437.0,58436.0,0.07074502]
[1725278145048,0.094957,58437.0,58436.0,0.12187013]
[1725278146450,0.094957,58437.0,58436.0,0.07074502]
[1725278147653,0.094957,58437.0,58436.0,0.15630402]
[1725278148550,0.0094,58437.0,58436.0,0.15630402]
[1725278150854,0.0094,58437.0,58436.0,0.12187013]
[1725278151056,0.180514,58437.0,58436.0,0.07074502]
[1725278154048,0.181854,58437.0,58436.0,0.07074502]
[1725278154456,0.270411,58437.0,58436.0,0.07074502]
[1725278154659,0.270411,58437.0,58436.0,0.0672]
[1725278155858,0.631211,58437.0,58436.0,0.0672]
[1725278158455,0.460097,58437.0,58436.0,0.0672]
[1725278163661,0.545654,58437.0,58436.0,0.0672]
[1725278166157,0.545654,58437.0,58436.0,0.11832511]
[1725278168261,0.545654,58437.0,58436.0,0.0672]
[1725278168659,0.545654,58437.0,58436.0,0.11832511]
[1725278168966,0.791211,58437.0,58436.0,0.11832511]
[1725278169161,0.705654,58437.0,58436.0,0.0672]
[1725278173156,0.74755988,58437.0,58436.0,0.0672]
[1725278174373,0.83311688,58437.0,58436.0,0.0672]
[1725278174968,1.94647688,58437.0,58436.0,0.0672]
[1725278178293,0.83177688,58437.0,58436.0,0.0672]
[1725278178572,0.84577688,58437.0,58436.0,0.0672]
[1725278178764,0.643871,58437.0,58436.0,0.0672]
[1725278178964,0.68577664,58437.0,58436.0,0.0672]
[1725278179373,0.84577664,58437.0,58436.0,0.0672]
[1725278179559,0.83377664,58437.0,58436.0,0.0672]
[1725278179766,0.84777664,58437.0,58436.0,0.0672]
[1725278180366,0.84777808,58437.0,58436.0,0.0672]
[1725278181364,0.805871,58437.0,58436.0,0.1353903]
[1725278181866,0.805871,58437.0,58436.0,0.0672]
[1725278182765,0.645871,58437.0,58436.0,0.13551615]
[1725278182963,0.645871,58437.0,58436.0,0.0672]
[1725278187771,0.285071,58437.0,58436.0,0.0672]
[1725278190869,0.645871,58437.0,58436.0,0.0672]
[1725278192779,0.647211,58437.0,58436.0,0.0672]
[1725278194778,0.647211,58437.0,58436.0,0.13555699]
[1725278196273,0.6891166,58437.0,58436.0,0.0672]
[1725278199875,0.3283166,58437.0,58436.0,0.0672]
[1725278200082,0.6891166,58437.0,58436.0,0.0672]
[1725278203377,0.647211,58437.0,58436.0,0.13555699]
[1725278203878,0.647211,58437.0,58436.0,0.0672]
[1725278204077,0.02974,58437.0,58436.0,0.152759]
[1725278204279,0.02974,58437.0,58436.0,0.513559]
[1725278204578,0.02974,58437.0,58436.0,0.6439475]
[1725278205376,0.02974,58437.0,58436.0,0.72937169]
[1725278205983,0.02974,58437.0,58436.0,0.36857169]
[1725278206182,0.02974,58437.0,58436.0,0.152759]
[1725278207377,0.02974,58437.0,58436.0,0.242759]
[1725278207788,0.115297,58437.0,58436.0,0.242759]
[1725278208385,0.115297,58437.0,58436.0,0.0672]
[1725278208887,0.115297,58437.0,58436.0,0.1572]
[1725278209088,0.115297,58437.0,58436.0,0.0672]
[1725278211992,0.15720002,58437.0,58436.0,0.0672]
[1725278212394,0.24275702,58437.0,58436.0,0.0672]
[1725278214696,0.15720002,58437.0,58436.0,0.0672]
[1725278214992,0.02974,58437.0,58436.0,0.152759]
[1725278215495,0.02974,58437.0,58436.0,0.802759]
[1725278215690,0.02974,58437.0,58436.0,0.152759]
[1725278216502,0.02774,58437.0,58436.0,0.152759]
[1725278216698,0.01374,58437.0,58436.0,0.152759]
[1725278216999,0.02774,58437.0,58436.0,0.152759]
[1725278217299,0.01574,58437.0,58436.0,0.152759]
[1725278217489,0.0264,58437.0,58436.0,0.152759]
[1725278218691,0.0264,58437.0,58436.0,1.266119]
[1725278219700,0.0264,58437.0,58436.0,1.351678]
[1725278219996,0.0264,58437.0,58436.0,1.43710219]
[1725278220899,0.0264,58437.0,58436.0,1.266119]
[1725278222597,0.0264,58437.0,58436.0,0.666119]
[1725278222900,0.0264,58437.0,58436.0,0.152759]
[1725278225502,0.0264,58437.0,58436.0,0.666119]
[1725278226600,0.0264,58437.0,58436.0,1.266119]
[1725278226905,0.0264,58437.0,58436.0,0.666119]
[1725278227803,0.0264,58437.0,58436.0,0.152759]
[1725278229308,0.0264,58437.0,58436.0,0.242759]
[1725278229609,0.111957,58437.0,58436.0,0.0672]
[1725278229803,0.111957,58437.0,58436.0,0.1572]
[1725278231797,0.113297,58437.0,58436.0,0.1572]
[1725278231998,0.099297,58437.0,58436.0,0.1572]
[1725278232198,0.101297,58437.0,58436.0,0.1572]
[1725278232414,0.115297,58437.0,58436.0,0.1572]
[1725278233308,0.07249009,58437.0,58436.0,0.28758987]
[1725278234606,0.07249009,58437.0,58436.0,0.28798987]
[1725278238010,0.07249009,58437.0,58436.0,0.19798987]
[1725278238216,0.07249009,58437.0,58436.0,0.39048029]
[1725278239310,0.07249009,58437.0,58436.0,0.28798987]
[1725278240508,0.07249009,58437.0,58436.0,0.39048029]
[1725278241509,0.07249009,58437.0,58436.0,0.28798987]
[1725278242012,0.02934,58437.0,58436.0,0.37354887]
[1725278242414,0.02934,58437.0,58436.0,0.47603929]
[1725278243522,0.02934,58437.0,58436.0,0.37354887]
[1725278243712,0.02934,58437.0,58436.0,0.47613978]
[1725278243912,0.02934,58437.0,58436.0,0.37354887]
[1725278244316,0.02934,58437.0,58436.0,0.47614179]
[1725278245022,0.02934,58437.0,58436.0,0.37354887]
[1725278246613,0.02934,58437.0,58436.0,0.37354677]
[1725278247842,0.02934,58437.0,58436.0,0.47617235]
[1725278248320,0.02934,58437.0,58436.0,0.243159]
[1725278248731,0.114897,58437.0,58436.0,0.153159]
[1725278249032,0.114897,58437.0,58436.0,0.29447348]
[1725278249636,0.114897,58437.0,58436.0,0.243159]
[1725278250537,0.02934,58437.0,58436.0,0.243159]
[1725278250942,0.02934,58437.0,58436.0,0.153159]
[1725278251130,0.02934,58437.0,58436.0,0.243159]
[1725278251937,0.114897,58437.0,58436.0,0.243159]
[1725278253536,0.02934,58437.0,58436.0,0.243159]
[1725278254446,0.028,58437.0,58436.0,0.243159]
[1725278254629,0.028,58437.0,58436.0,0.153159]
[1725278254837,0.028,58437.0,58436.0,0.243159]
[1725278256539,0.028,58437.0,58436.0,0.47617477]
[1725278257646,0.028,58437.0,58436.0,0.38617477]
[1725278257943,0.028,58437.0,58436.0,0.47617477]
[1725278259545,0.113557,58437.0,58436.0,0.28354919]
[1725278259740,0.113557,58437.0,58436.0,0.37354919]
[1725278261153,0.113557,58437.0,58436.0,0.28354919]
[1725278261355,0.113557,58437.0,58436.0,0.37355314]
[1725278262348,0.028,58437.0,58436.0,0.37355314]
[1725278263459,0.028,58437.0,58436.0,0.243159]
[1725278268653,0.02934,58437.0,58436.0,0.243159]
[1725278271543,0.02934,58437.0,58436.0,0.47617962]
[1725278273561,0.02934,58437.0,58436.0,0.37355404]
[1725278275463,0.02934,58437.0,58436.0,0.47617962]
[1725278276065,0.02934,58437.0,58436.0,0.37355404]
[1725278276261,0.02934,58437.0,58436.0,0.47617962]
[1725278276648,0.114897,58437.0,58436.0,0.47617962]
[1725278276854,0.114897,58437.0,58436.0,0.37355404]
[1725278278461,0.114897,58437.0,58436.0,0.243159]
[1725278278953,0.02934,58437.0,58436.0,0.243159]
[1725278279153,0.02934,58437.0,58436.0,0.29450289]
[1725278279762,0.02934,58437.0,58436.0,0.243159]
[1725278280750,0.01534,58437.0,58436.0,0.328718]
[1725278280951,0.02934,58437.0,58436.0,0.243159]
[1725278284561,0.028,58437.0,58436.0,0.842078]
[1725278284766,0.085542,58448.0,58446.0,0.085543]
[1725278284966,0.085542,58448.0,58447.0,0.09]
[1725278285159,0.3608,58452.0,58447.0,0.09]
[1725278285160,0.08579464,58451.0,58447.0,0.09]
[1725278285368,0.08579464,58451.0,58450.0,0.09]
[1725278287163,0.08579464,58451.0,58450.0,0.14125301]
[1725278288066,0.08579464,58451.0,58450.0,0.14225301]
[1725278288067,0.08779464,58451.0,58450.0,0.14225301]
[1725278288371,0.08879464,58451.0,58450.0,0.14325301]
[1725278289873,0.08879464,58451.0,58450.0,0.092]
[1725278290065,0.08879464,58451.0,58450.0,0.14325301]
[1725278290668,0.08879464,58451.0,58450.0,0.1432282]
[1725278291767,0.08879464,58451.0,58450.0,0.14677733]
[1725278292264,0.26433164,58451.0,58450.0,0.00554913]
[1725278292871,0.62513164,58451.0,58450.0,0.00554913]
[1725278293678,1.26702827,58451.0,58450.0,0.00554913]
[1725278293862,1.2670283,58451.0,58450.0,0.00554913]
[1725278294376,0.6670283,58451.0,58450.0,0.00554913]
[1725278294573,1.2670283,58451.0,58450.0,0.00554913]
[1725278295073,1.3525653,58451.0,58450.0,0.00554913]
[1725278295370,1.3525653,58451.0,58436.0,0.153159]
[1725278295371,0.085552,58441.0,58440.0,0.08922192]
[1725278295671,0.12784866,58441.0,58440.0,0.08922192]
[1725278295863,0.22263768,58441.0,58440.0,0.08922192]
[1725278296062,0.26453434,58441.0,58440.0,0.08922192]
[1725278297383,0.27853434,58441.0,58440.0,0.09022192]
[1725278297769,0.14184866,58441.0,58440.0,0.09022192]
[1725278298074,0.29254227,58441.0,58440.0,0.09122192]
[1725278298368,0.29254227,58441.0,58440.0,0.00566992]
[1725278298576,0.2925443,58441.0,58440.0,0.00566992]
[1725278299273,0.15585069,58441.0,58440.0,0.00566992]
[1725278301679,0.113952,58441.0,58440.0,0.00566992]
[1725278303979,0.113952,58441.0,58440.0,0.00606992]
[1725278304175,0.113952,58441.0,58440.0,0.22203069]
[1725278307479,0.113952,58441.0,58440.0,0.18164308]
[1725278308574,0.113952,58441.0,58440.0,0.09606992]
[1725278309972,0.113952,58441.0,58440.0,0.18162292]
[1725278310188,0.113952,58441.0,58440.0,0.09606992]
[1725278310378,0.0284,58441.0,58440.0,0.09606992]
[1725278310567,0.028,58441.0,58440.0,0.62797592]
[1725278310772,0.00025664,58451.0,58440.0,1.05686992]
[1725278311070,0.00025664,58451.0,58450.0,0.09]